bitfinex-derivatives/quotes_ETHF0:USTF0_20250620
["timestamp","ask_amount","ask_price","bid_price","bid_amount"]
[1750412352931,23.929,2549.5,2549.4,0.78436]
[1750412353735,24.71333,2549.5,2549.4,0.78436]
[1750412356124,23.929,2549.5,2549.4,0.78436]
[1750412356331,30.89029,2549.6,2549.5,0.78433]
[1750412356825,0.78436,2549.5,2549.4,0.78433]
[1750412358632,3.07589461,2549.5,2549.2,0.6872]
[1750412358838,3.2592,2549.4,2549.0,0.6515]
[1750412359035,0.78445,2549.2,2549.1,0.78442]
[1750412359235,0.78445,2549.1,2549.0,0.6515]
[1750412359440,0.78445,2549.1,2549.0,0.78445]
[1750412361349,0.78442,2549.2,2549.1,0.78445]
[1750412361634,30.88942,2549.2,2549.1,0.78445]
[1750412362435,6.9634,2549.4,2549.3,0.78436]
[1750412362638,30.8884,2549.4,2549.3,0.78436]
[1750412362837,0.78439,2549.3,2549.2,1.4683]
[1750412365038,0.78439,2549.3,2549.2,0.6839]
[1750412366043,0.78439,2549.3,2549.2,1.46832]
[1750412367138,0.78439,2549.3,2549.2,0.6839]
[1750412367843,0.78439,2549.3,2549.2,1.46832]
[1750412368632,0.78439,2549.3,2549.2,0.6839]
[1750412369142,0.78439,2549.3,2549.2,1.46832]
[1750412369743,0.78439,2549.3,2549.2,0.6839]
[1750412370745,0.78439,2549.3,2549.2,1.46832]
[1750412371449,30.88539,2549.3,2549.2,1.46832]
[1750412372649,0.78439,2549.3,2549.2,1.46832]
[1750412372951,30.88439,2549.3,2549.2,1.46832]
[1750412373849,0.78438,2549.5,2549.4,0.78433]
[1750412374048,33.09820303,2549.5,2549.2,3.8917]
[1750412374347,0.78439,2549.3,2549.2,4.6761]
[1750412378047,0.78439,2549.3,2549.2,7.75199461]
[1750412379153,0.78439,2549.3,2549.2,3.8917]
[1750412379355,0.78448,2549.0,2548.9,3.2078]
[1750412379856,0.78448,2549.0,2548.9,3.9923]
[1750412381255,0.78444,2549.2,2549.1,0.78442]
[1750412381455,30.88144,2549.2,2549.1,0.78442]
[1750412384551,31.92314477,2549.2,2549.1,0.78442]
[1750412385547,31.92325435,2549.2,2549.1,0.78442]
[1750412385950,0.78448,2549.1,2549.0,0.78446]
[1750412386655,30.88144,2549.2,2549.1,0.78445]
[1750412386854,31.92339813,2549.2,2549.1,0.78445]
[1750412388151,30.88144,2549.2,2549.1,0.78445]
[1750412388649,31.92407113,2549.2,2549.1,1.46425]
[1750412389658,1.82707113,2549.2,2549.1,1.46425]
[1750412389854,6.171,2549.2,2549.1,1.46425]
[1750412390154,0.78431,2549.6,2549.5,0.78433]
[1750412390355,6.171,2549.6,2549.5,3.07589461]
[1750412390653,31.91310784,2549.6,2549.5,3.86022461]
[1750412391256,31.91310784,2549.6,2549.5,0.78433]
[1750412392056,31.91210784,2549.6,2549.5,0.78433]
[1750412395356,0.78433,2549.5,2549.4,1.42683]
[1750412395556,0.78433,2549.5,2549.4,0.6425]
[1750412396857,0.78433,2549.5,2549.4,1.42686]
[1750412398161,0.78433,2549.5,2549.4,0.6425]
[1750412399959,0.78445,2549.2,2549.1,0.78441]
[1750412400159,0.78445,2549.2,2549.1,1.42521]
[1750412401951,24.69441,2549.3,2549.2,0.78442]
[1750412402164,6.95536,2549.5,2549.4,0.78433]
[1750412402364,30.86336,2549.5,2549.4,0.78433]
[1750412403663,0.78436,2549.5,2549.4,0.78433]
[1750412403852,24.69236,2549.5,2549.4,0.78433]
[1750412405061,0.78442,2549.3,2549.2,0.78436]
[1750412406264,0.78437,2549.4,2549.3,0.78436]
[1750412406562,47.15265,2549.8,2549.3,5.03684461]
[1750412406769,0.78433,2549.6,2549.5,3.86019461]
[1750412406964,0.78436,2549.5,2549.4,0.78433]
[1750412407160,0.78436,2549.4,2549.3,3.99217]
[1750412408274,0.78436,2549.4,2549.2,0.78439]
[1750412408275,0.78442,2549.3,2549.2,0.78439]
[1750412408468,24.69042,2549.3,2549.2,0.78439]
[1750412409667,23.906,2549.3,2549.2,0.78439]
[1750412410475,0.78435,2549.5,2549.4,0.78436]
[1750412410680,0.78436,2549.4,2549.3,3.99216]
[1750412412473,30.86035,2549.5,2549.4,0.78436]
[1750412413374,1.2965,2549.6,2549.4,0.78436]
[1750412413375,0.78431,2549.7,2549.6,0.78426]
[1750412413579,31.90167292,2549.7,2549.6,0.78426]
[1750412415577,31.11636292,2549.7,2549.6,0.78426]
[1750412416570,31.90062292,2549.7,2549.6,0.78426]
[1750412418161,0.78433,2549.5,2549.4,0.6814]
[1750412418365,0.78433,2549.5,2549.4,1.46572]
[1750412419875,1.82788352,2549.5,2549.4,1.46572]
[1750412420361,25.72888352,2549.5,2549.4,1.46572]
[1750412426575,25.72588352,2549.5,2549.4,1.46572]
[1750412427074,24.94155352,2549.5,2549.4,1.46572]
[1750412427276,1.04355352,2549.5,2549.4,1.46572]
[1750412427475,24.68131,2549.6,2549.5,0.78433]
[1750412427673,25.72460566,2549.6,2549.5,0.78433]
[1750412427874,1.04329566,2549.6,2549.5,2.15813]
[1750412428376,30.84428,2549.7,2549.6,0.78429]
[1750412428568,31.88761936,2549.7,2549.6,0.78429]
[1750412429277,31.10333936,2549.7,2549.6,0.78429]
[1750412430476,31.88759936,2549.7,2549.6,0.78429]
[1750412431082,31.10333936,2549.7,2549.6,0.78429]
[1750412431378,31.88759936,2549.7,2549.6,0.78429]
[1750412433281,31.10333936,2549.7,2549.6,0.78429]
[1750412434277,31.88759936,2549.7,2549.6,0.78429]
[1750412435182,30.84426,2549.7,2549.6,0.78429]
[1750412435382,31.88740785,2549.7,2549.6,0.78429]
[1750412441986,0.78432,2549.6,2549.5,0.7843]
[1750412443487,1.82686951,2549.6,2549.5,0.7843]
[1750412447588,0.78433,2549.5,2549.4,1.46573]
[1750412447889,24.67033,2549.5,2549.4,1.46573]
[1750412448985,0.78433,2549.5,2549.4,1.46573]
[1750412449587,24.67032,2549.6,2549.5,0.78433]
[1750412449780,25.71308051,2549.6,2549.5,0.78433]
[1750412450584,28.00465512,2549.6,2549.0,6.33397097]
[1750412450790,3.86033461,2549.3,2549.2,0.7844]
[1750412450991,0.78445,2549.2,2549.1,0.78442]
[1750412451190,30.82341,2549.3,2549.2,0.78442]
[1750412453091,32.08441,2549.3,2549.2,0.78442]
[1750412463803,0.78445,2549.1,2549.0,3.99224]
[1750412464003,24.66545,2549.1,2549.0,3.99224]
[1750412464505,23.881,2549.1,2549.0,3.99224]
[1750412465300,24.66545,2549.1,2549.0,3.99224]
[1750412468906,0.78445,2549.1,2549.0,3.99224]
[1750412469209,6.94045,2549.2,2549.1,0.78442]
[1750412469406,30.81845,2549.2,2549.1,0.78442]
[1750412470707,0.78445,2549.1,2549.0,3.2078]
[1750412470916,5.82504461,2549.1,2549.0,3.2078]
[1750412471405,6.86879217,2549.1,2549.0,3.2078]
[1750412472913,0.78454,2548.8,2548.7,3.8607]
[1750412473214,30.81654,2548.8,2548.7,3.8607]
[1750412474210,30.81654,2548.8,2548.7,4.64527]
[1750412484721,30.80354,2548.8,2548.7,4.64527]
[1750412484919,0.7845,2549.1,2549.0,0.78444]
[1750412485115,1.82812104,2549.1,2549.0,3.86033461]
[1750412485311,0.78444,2549.2,2549.1,0.78442]
[1750412485516,30.80344,2549.2,2549.1,0.78442]
[1750412485715,31.84715685,2549.2,2549.1,0.78442]
[1750412487021,0.78445,2549.1,2549.0,3.99225]
[1750412488321,0.78445,2549.1,2549.0,3.2078]
[1750412488526,0.78445,2549.1,2549.0,0.78448]
[1750412489125,0.78451,2549.0,2548.9,0.78449]
[1750412495022,0.78451,2549.0,2548.9,2.13509]
[1750412498124,0.78451,2549.0,2548.9,2.82469]
[1750412502832,0.78447,2549.2,2549.1,0.78442]
[1750412506427,0.78445,2549.1,2549.0,3.99225]
[1750412507229,6.147,2549.3,2549.0,5.16898]
[1750412507427,6.9314,2549.3,2549.2,0.78442]
[1750412507628,30.78136,2549.5,2549.4,0.78433]
[1750412507923,6.92236,2549.5,2549.4,0.78433]
[1750412518752,9.21389461,2549.5,2549.0,3.2078]
[1750412518947,3.86030461,2549.3,2549.2,0.78442]
[1750412519447,0.78441,2549.3,2549.2,0.78442]
[1750412520250,26.61888,2549.4,2549.3,0.78439]
[1750412520951,27.79541,2549.4,2549.0,5.79428]
[1750412521253,27.79541,2549.4,2549.2,0.78442]
[1750412521254,2.0941,2549.3,2549.2,0.78442]
[1750412521950,1.3097,2549.3,2549.2,0.78442]
[1750412522151,6.92235,2549.5,2549.4,0.78436]
[1750412522351,6.138,2549.5,2549.4,0.78436]
[1750412525551,0.6715,2549.8,2549.7,0.78426]
[1750412525754,6.8243,2550.1,2550.0,0.78417]
[1750412526056,6.137,2550.1,2550.0,0.78417]
[1750412527050,9.12243461,2550.5,2550.1,0.78414]
[1750412527251,6.137,2550.4,2550.3,0.78408]
[1750412527554,6.137,2550.6,2550.5,0.78402]
[1750412529650,6.92091,2550.9,2550.8,0.78393]
[1750412529855,30.76591,2550.9,2550.8,0.78393]
[1750412530154,6.137,2550.9,2550.8,0.78393]
[1750412531761,6.92089,2550.9,2550.8,0.78393]
[1750412531960,0.78393,2550.8,2550.7,0.6319]
[1750412532160,11.24670461,2550.9,2550.8,0.78393]
[1750412532461,6.137,2550.9,2550.8,0.78393]
[1750412532764,0.78385,2551.1,2551.0,0.78386]
[1750412533756,34.60702,2551.2,2551.1,0.78383]
[1750412533955,29.977,2551.2,2551.1,0.78383]
[1750412534154,6.136,2551.2,2551.1,0.78383]
[1750412534454,29.974,2551.2,2551.1,0.78383]
[1750412534958,0.78375,2551.4,2551.3,0.78377]
[1750412535156,5.24143,2551.5,2551.4,0.78374]
[1750412535461,30.7557,2551.6,2551.5,0.78371]
[1750412535659,6.9187,2551.6,2551.5,0.78371]
[1750412535860,30.7557,2551.6,2551.5,0.78371]
[1750412536360,30.7527,2551.6,2551.5,0.78371]
[1750412536661,6.91868,2551.6,2551.5,0.78371]
[1750412536862,0.78375,2551.5,2551.4,0.78373]
[1750412537056,0.78375,2551.5,2551.4,3.99153]
[1750412540364,6.9187,2551.6,2551.5,0.78371]
[1750412541260,6.135,2551.6,2551.5,3.85960461]
[1750412541570,12.48922202,2551.8,2551.5,3.07589461]
[1750412541862,3.2078,2552.4,2551.5,3.07589461]
[1750412541863,0.78354,2552.1,2551.8,1.95904]
[1750412542061,0.78352,2552.2,2552.1,0.7835]
[1750412542559,2.10519,2552.3,2552.2,0.7835]
[1750412542764,0.78352,2552.2,2552.1,0.7835]
[1750412543151,0.6272,2552.4,2552.1,3.2078]
[1750412543356,7.53567,2552.4,2552.3,0.78346]
[1750412543960,0.7835,2552.2,2552.1,3.99131]
[1750412544165,0.78353,2552.1,2552.0,1.41793]
[1750412544665,0.78356,2552.0,2551.9,0.78356]
[1750412545352,27.56309461,2552.2,2552.0,0.78354]
[1750412545661,26.57291,2552.2,2552.1,0.78353]
[1750412545859,32.69391,2552.2,2552.1,0.78353]
[1750412546258,0.78356,2552.1,2552.0,0.78353]
[1750412548258,32.69391,2552.2,2552.1,0.78353]
[1750412548458,3.2078,2552.4,2552.0,5.03478461]
[1750412548656,0.78353,2552.1,2552.0,0.78354]
[1750412549167,0.78358,2552.0,2551.9,0.78356]
[1750412549366,0.78354,2552.1,2552.0,0.78352]
[1750412549961,0.78352,2552.2,2552.1,0.7835]
[1750412550268,2.15812,2552.2,2552.1,0.78353]
[1750412550470,0.78355,2552.1,2552.0,0.78353]
[1750412550662,32.10215,2552.1,2552.0,0.78353]
[1750412550968,0.78362,2551.9,2551.8,0.78361]
[1750412551273,0.78366,2551.8,2551.7,0.78363]
[1750412551463,26.65336,2551.8,2551.7,0.78363]
[1750412553259,25.1936,2551.8,2551.7,0.78363]
[1750412553466,23.819,2551.8,2551.7,0.78363]
[1750412554572,30.72559,2551.9,2551.8,0.78362]
[1750412555572,0.78358,2552.0,2551.9,0.78355]
[1750412555774,30.72558,2552.0,2551.9,0.78355]
[1750412556577,0.78361,2551.9,2551.8,0.78359]
[1750412557073,2.66221,2551.9,2551.8,0.78359]
[1750412559979,6.75855721,2551.9,2551.8,0.78359]
[1750412560677,3.6826626,2551.9,2551.8,0.78359]
[1750412563276,3.6826426,2551.9,2551.8,0.78359]
[1750412563775,25.6200426,2551.9,2551.8,0.78359]
[1750412565372,24.8364526,2551.9,2551.8,0.78359]
[1750412566877,25.6200426,2551.9,2551.8,0.78359]
[1750412567378,1.0204526,2551.9,2551.8,0.78359]
[1750412567586,6.124,2552.2,2552.1,0.78353]
[1750412567775,1.02324831,2552.2,2552.0,0.78353]
[1750412568082,1.02324831,2552.1,2552.0,0.78353]
[1750412568592,1.02324831,2552.1,2551.9,0.78356]
[1750412568795,0.78362,2551.9,2551.8,0.78359]
[1750412568987,31.74486831,2551.9,2551.8,0.78359]
[1750412569469,33.07566831,2551.9,2551.8,0.78359]
[1750412569673,32.29204831,2551.9,2551.8,0.78359]
[1750412570977,33.07563831,2551.9,2551.8,0.78359]
[1750412573979,0.78365,2551.7,2551.6,1.46206]
[1750412574188,27.91562147,2551.7,2551.2,3.2078]
[1750412574389,0.78373,2551.5,2551.4,0.7837]
[1750412574585,30.71573,2551.5,2551.4,0.7837]
[1750412574885,0.78374,2551.4,2551.3,1.46635]
[1750412575389,32.09223,2551.5,2551.4,0.78374]
[1750412575979,30.71573,2551.5,2551.4,0.78374]
[1750412576386,29.931,2551.5,2551.4,0.78374]
[1750412577086,30.95751425,2551.5,2551.4,0.78374]
[1750412577486,31.74122425,2551.5,2551.4,0.78374]
[1750412578689,1.02651425,2551.5,2551.4,3.85963461]
[1750412579080,1.02651425,2551.5,2551.4,5.14793461]
[1750412579279,23.813,2551.6,2551.5,0.78371]
[1750412579481,24.83955456,2551.6,2551.5,2.13281]
[1750412580379,1.02655456,2551.6,2551.5,2.13281]
[1750412580579,6.12,2551.8,2551.7,0.78365]
[1750412580783,30.96057843,2551.8,2551.7,3.85954461]
[1750412581179,30.96157843,2551.8,2551.7,4.50014461]
[1750412581584,30.96157843,2551.8,2551.7,1.42425]
[1750412582485,1.02757843,2551.8,2551.7,1.42425]
[1750412582693,23.813,2552.0,2551.9,0.78356]
[1750412582895,24.84074122,2552.0,2551.9,0.78356]
[1750412583191,25.62433122,2552.0,2551.9,0.78356]
[1750412583603,1.02774122,2552.0,2551.9,0.78356]
[1750412583890,24.86474122,2552.0,2551.9,0.78356]
[1750412585383,1.02774122,2552.0,2551.9,3.85945461]
[1750412585588,24.85874122,2552.0,2551.9,5.19225461]
[1750412585884,24.85874122,2552.0,2551.9,2.11636]
[1750412586287,5.16633,2552.5,2552.2,0.78347]
[1750412586488,31.75880936,2552.4,2552.3,1.40576]
[1750412587386,30.98837936,2552.4,2552.3,1.40576]
[1750412587786,1.02637936,2552.4,2552.3,4.48165461]
[1750412589594,27.83321,2552.5,2552.4,0.78343]
[1750412589784,28.85877039,2552.5,2552.4,0.78343]
[1750412590890,28.07537039,2552.5,2552.4,0.78343]
[1750412591585,4.23337039,2552.5,2552.4,0.78343]
[1750412591794,1.02557039,2552.5,2552.4,0.78343]
[1750412592382,1.80897039,2552.5,2552.4,0.78343]
[1750412592588,24.61539,2552.6,2552.5,0.7834]
[1750412592788,1.02470529,2552.6,2552.5,0.7834]
[1750412593195,24.61136,2552.7,2552.6,0.78337]
[1750412593585,23.828,2552.7,2552.6,0.78337]
[1750412593989,10.11013,2552.8,2552.7,0.78334]
[1750412594296,33.94413,2552.8,2552.7,0.78334]
[1750412594591,9.3268,2552.8,2552.7,0.78334]
[1750412594894,30.73431,2552.8,2552.7,0.78334]
[1750412595697,31.75866562,2552.8,2552.7,0.78334]
[1750412596585,31.75866562,2552.8,2552.4,4.35449461]
[1750412596586,29.951,2552.8,2552.4,4.35449461]
[1750412596794,0.78343,2552.4,2552.3,1.40575]
[1750412598301,0.78343,2552.5,2552.4,0.7834]
[1750412599094,24.60939,2552.6,2552.5,0.7834]
[1750412600303,10.11012,2552.8,2552.7,0.78334]
[1750412600504,33.93411,2552.8,2552.7,0.78334]
[1750412601102,31.75067446,2552.8,2552.7,1.46004]
[1750412601700,30.72731,2552.8,2552.7,1.46004]
[1750412601891,30.95996132,2552.8,2552.5,3.99119]
[1750412602203,0.78337,2552.6,2552.5,3.99119]
[1750412602597,1.2992,2552.7,2552.6,0.78334]
[1750412602598,24.60336,2552.7,2552.6,0.78334]
[1750412606303,0.78334,2552.7,2552.6,0.78334]
[1750412606504,6.119,2552.8,2552.7,0.78334]
[1750412606802,30.94575928,2552.8,2552.7,0.78334]
[1750412607303,6.119,2552.8,2552.7,3.85923461]
[1750412607506,29.928,2552.8,2552.7,3.85923461]
[1750412608710,51.294,2552.9,2552.8,0.78331]
[1750412609004,75.88528,2552.9,2552.8,0.78331]
[1750412609608,76.90216917,2552.9,2552.8,0.78331]
[1750412609809,0.78334,2552.8,2552.7,0.78331]
[1750412610109,0.78337,2552.7,2552.6,0.78335]
[1750412610406,24.59137,2552.7,2552.6,0.78335]
[1750412611509,23.808,2552.7,2552.6,0.78335]
[1750412611803,24.59134,2552.7,2552.6,0.78335]
[1750412612012,0.78346,2552.4,2552.3,0.78344]
[1750412612215,24.59046,2552.4,2552.3,0.78344]
[1750412612707,25.84046,2552.4,2552.3,0.78344]
[1750412614203,25.057,2552.4,2552.3,0.78344]
[1750412615006,23.807,2552.4,2552.3,3.85933461]
[1750412616003,24.59043,2552.4,2552.3,0.78344]
[1750412616204,26.53173,2552.4,2552.3,0.78344]
[1750412616409,25.87373,2552.4,2552.3,0.78344]
[1750412616705,23.807,2552.4,2552.3,0.78344]
[1750412616904,24.59043,2552.4,2552.3,0.78344]
[1750412617500,30.72343,2552.4,2552.3,0.78344]
[1750412617705,31.75185471,2552.4,2552.3,0.78344]
[1750412617907,1.02842471,2552.4,2552.3,0.78344]
[1750412618210,29.937,2552.4,2552.3,0.78344]
[1750412619011,29.937,2552.4,2552.3,3.85933461]
[1750412619210,0.78343,2552.5,2552.4,0.78339]
[1750412619409,30.71943,2552.5,2552.4,0.78339]
[1750412619711,31.74790106,2552.5,2552.4,0.78339]
[1750412620217,31.74790106,2552.5,2552.4,1.40759]
[1750412620514,30.96247106,2552.5,2552.4,1.40759]
[1750412620714,31.74587106,2552.5,2552.4,1.40759]
[1750412621815,30.96247106,2552.5,2552.4,1.40759]
[1750412622823,24.83647106,2552.5,2552.4,4.61539]
[1750412623217,1.02847106,2552.5,2552.4,4.61539]
[1750412624223,1.02847106,2552.5,2552.4,7.69128461]
[1750412624416,1.81187106,2552.5,2552.4,4.61539]
[1750412624614,1.81187106,2552.5,2552.4,0.6242]
[1750412624815,0.78343,2552.4,2552.3,0.78345]
[1750412625017,24.59143,2552.4,2552.3,0.78345]
[1750412625918,0.78346,2552.3,2552.2,1.44438]
[1750412626819,0.78346,2552.3,2552.2,0.6609]
[1750412627421,0.78346,2552.3,2552.2,1.4444]
[1750412627926,8.0847,2552.3,2551.8,3.12303062]
[1750412628226,0.78356,2552.1,2552.0,0.78353]
[1750412628427,0.78356,2552.1,2551.9,0.6668]
[1750412628428,25.85302,2552.2,2552.1,0.78353]
[1750412628626,26.8818028,2552.2,2552.1,0.78353]
[1750412629031,29.935,2552.2,2552.1,7.06722461]
[1750412629330,23.808,2552.2,2552.1,7.06722461]
[1750412629527,0.78344,2552.5,2552.1,7.06722461]
[1750412629727,1.0285724,2552.4,2552.3,0.78346]
[1750412629929,24.8365724,2552.4,2552.3,0.78346]
[1750412630127,25.6200024,2552.4,2552.3,0.78346]
[1750412630833,25.6200024,2552.4,2552.3,3.85935461]
[1750412632934,0.78346,2552.3,2552.2,1.45028]
[1750412633837,0.78346,2552.3,2552.2,0.6668]
[1750412634039,0.7835,2552.2,2552.1,3.85939461]
[1750412634734,24.5935,2552.2,2552.1,3.07589461]
[1750412634931,0.78353,2552.1,2552.0,1.42984]
[1750412639841,0.78353,2552.1,2552.0,0.78354]
[1750412640942,0.78356,2552.0,2551.9,0.78358]
[1750412641252,0.78365,2551.7,2551.6,0.78366]
[1750412641946,1.81190959,2551.7,2551.6,0.78366]
[1750412642151,7.93290959,2551.7,2551.6,0.78366]
[1750412643345,6.90465,2551.7,2551.6,0.78366]
[1750412643545,6.121,2551.7,2551.6,0.78366]
[1750412644957,6.90465,2551.7,2551.6,0.78366]
[1750412650361,0.78365,2551.7,2551.6,0.78366]
[1750412650553,24.59565,2551.7,2551.6,0.78366]
[1750412651861,23.812,2551.7,2551.6,0.78366]
[1750412652268,23.812,2551.7,2551.5,6.91389461]
[1750412652269,0.78364,2551.8,2551.7,0.78365]
[1750412652457,0.78364,2551.8,2551.7,3.85954461]
[1750412652656,0.78361,2551.9,2551.8,0.78357]
[1750412652860,30.71761,2551.9,2551.8,1.41237]
[1750412653160,29.935,2551.9,2551.8,1.41242]
[1750412653361,0.78359,2551.9,2551.8,1.41242]
[1750412653669,0.78358,2552.1,2552.0,0.78353]
[1750412653964,0.78359,2552.0,2551.9,0.78356]
[1750412655069,0.78359,2552.0,2551.9,3.85945461]
[1750412656674,30.71759,2552.0,2551.9,3.85945461]
[1750412658475,31.74255174,2552.0,2551.9,3.85945461]
[1750412658776,30.71759,2552.0,2551.9,3.85945461]
[1750412659165,31.74252532,2552.0,2551.9,3.85945461]
[1750412660170,6.122,2552.1,2552.0,0.78356]
[1750412660374,29.934,2552.1,2552.0,3.85945461]
[1750412661973,3.2078,2552.5,2552.1,1.95879]
[1750412662170,31.7409298,2552.4,2552.3,0.78346]
[1750412664285,33.0374298,2552.4,2552.3,0.78346]
[1750412664483,33.0374398,2552.4,2552.3,0.78346]
[1750412664681,31.7409398,2552.4,2552.3,0.78346]
[1750412666286,7.9289398,2552.4,2552.3,0.78346]
[1750412666486,30.9564798,2552.4,2552.3,0.78346]
[1750412666686,31.7399098,2552.4,2552.3,0.78346]
[1750412668186,1.0274798,2552.4,2552.3,0.78346]
[1750412668375,30.9554798,2552.4,2552.3,0.78346]
[1750412669091,31.7389098,2552.4,2552.3,0.78346]
[1750412672199,30.9554798,2552.4,2552.3,0.78346]
[1750412672688,31.7389098,2552.4,2552.3,0.78346]
[1750412674093,1.8109098,2552.4,2552.3,0.78346]
[1750412674292,31.7379098,2552.4,2552.3,0.78346]
[1750412675192,7.1454798,2552.4,2552.3,0.78346]
[1750412675399,30.9544798,2552.4,2552.3,0.78346]
[1750412675590,0.7834,2552.6,2552.2,5.1665]
[1750412675898,6.9014,2552.6,2552.5,3.85929461]
[1750412676197,31.73806496,2552.6,2552.5,3.85929461]
[1750412676797,30.95466496,2552.6,2552.5,7.06709461]
[1750412677495,7.14566496,2552.6,2552.5,7.06709461]
[1750412677689,6.118,2552.6,2552.5,7.06709461]
[1750412677885,6.118,2552.6,2552.5,8.42849461]
[1750412678092,45.168,2552.9,2552.8,0.78331]
[1750412678398,76.12058278,2552.9,2552.8,0.78331]
[1750412678698,0.78326,2553.0,2552.8,0.78331]
[1750412678699,9.3258,2553.1,2553.0,0.78325]
[1750412678887,34.16012365,2553.1,2553.0,0.78325]
[1750412679093,34.94335365,2553.1,2553.0,0.78325]
[1750412680199,0.78328,2553.0,2552.9,0.78326]
[1750412680497,1.81060365,2553.0,2552.9,0.78326]
[1750412680898,25.61560365,2553.0,2552.9,0.78326]
[1750412686503,1.02732365,2553.0,2552.9,3.85915461]
[1750412686701,29.921,2553.1,2553.0,0.78325]
[1750412687199,29.921,2553.1,2553.0,1.43535]
[1750412689301,0.78318,2553.3,2553.2,0.78315]
[1750412689496,30.70018,2553.3,2553.2,0.78315]
[1750412689694,31.72542764,2553.3,2553.2,0.78315]
[1750412691403,31.72525419,2553.3,2553.2,0.78315]
[1750412692901,31.72525419,2553.3,2553.0,2.6102]
[1750412693100,0.78322,2553.1,2553.0,0.7832]
[1750412693305,24.58322,2553.1,2553.0,0.7832]
[1750412694707,23.8,2553.1,2553.0,0.7832]
[1750412696010,2.67781,2553.2,2553.1,0.78322]
[1750412696196,32.58981,2553.2,2553.1,0.78322]
[1750412699303,2.67781,2553.2,2553.1,0.78322]
[1750412699503,32.58881,2553.2,2553.1,0.78322]
[1750412701108,3.9909,2553.5,2553.4,0.78313]
[1750412701301,34.92667413,2553.5,2553.4,0.78313]
[1750412701705,36.21837413,2553.5,2553.4,0.78313]
[1750412702711,0.78316,2553.4,2553.3,0.78315]
[1750412702909,1.80793413,2553.4,2553.3,0.78315]
[1750412705110,31.71793413,2553.4,2553.3,0.78315]
[1750412705504,1.80793413,2553.4,2553.3,0.78315]
[1750412705705,31.71793413,2553.4,2553.3,0.78315]
[1750412705914,0.78316,2553.3,2553.2,0.6625]
[1750412706110,1.80793413,2553.3,2553.2,0.6625]
[1750412706816,0.78319,2553.2,2553.1,0.7832]
[1750412707011,0.78322,2553.1,2553.0,0.6577]
[1750412707312,1.80799413,2553.1,2553.0,0.6577]
[1750412707715,1.95827,2552.9,2552.3,3.2078]
[1750412707916,3.85930461,2552.6,2552.5,0.7834]
[1750412708115,0.78343,2552.5,2552.4,0.78342]
[1750412708415,0.78343,2552.4,2552.3,3.99125]
[1750412708614,24.57843,2552.4,2552.3,3.99125]
[1750412708815,24.57843,2552.4,2552.3,3.2078]
[1750412709007,30.69243,2552.4,2552.3,3.99126]
[1750412710414,29.909,2552.4,2552.3,3.99126]
[1750412711511,30.69243,2552.4,2552.3,3.99126]
[1750412711814,29.909,2552.4,2552.3,3.99126]
[1750412713916,30.69243,2552.4,2552.3,3.99126]
[1750412714827,30.69243,2552.4,2552.3,3.2078]
[1750412716321,30.69243,2552.4,2552.3,3.99126]
[1750412717319,29.909,2552.4,2552.3,3.99126]
[1750412717522,30.69243,2552.4,2552.3,3.99126]
[1750412718832,30.69543,2552.4,2552.3,3.99126]
[1750412720121,30.69543,2552.4,2552.3,3.2078]
[1750412720321,30.69543,2552.4,2552.3,3.99126]
[1750412721326,29.912,2552.4,2552.3,3.99126]
[1750412722329,30.69543,2552.4,2552.3,3.99126]
[1750412722530,0.78343,2552.5,2552.4,0.7834]
[1750412722729,30.69543,2552.5,2552.4,1.4261]
[1750412723725,30.69243,2552.5,2552.4,1.4261]
[1750412725229,0.78343,2552.4,2552.3,0.78344]
[1750412725427,0.78343,2552.4,2552.3,1.44284]
[1750412729830,0.78352,2552.1,2552.0,3.2078]
[1750412730031,24.57952,2552.2,2552.0,3.2078]
[1750412730333,24.57952,2552.2,2552.1,0.78352]
[1750412731232,0.78352,2552.1,2552.0,3.99134]
[1750412733335,6.89552,2552.1,2552.0,3.99134]
[1750412738235,6.89552,2552.1,2552.0,3.2078]
[1750412738646,6.89552,2552.1,2552.0,3.99135]
[1750412739141,6.89552,2552.1,2552.0,3.2078]
[1750412739541,6.89552,2552.1,2552.0,3.99135]
[1750412740942,6.89552,2552.1,2552.0,7.06724461]
[1750412744147,6.89552,2552.1,2552.0,3.99135]
[1750412744439,6.89552,2552.1,2552.0,3.2078]
[1750412744638,0.78355,2552.0,2551.9,3.07589461]
[1750412744845,0.78359,2551.9,2551.8,0.6272]
[1750412746144,0.78359,2551.9,2551.8,1.41082]
[1750412746345,0.78359,2551.9,2551.8,0.6272]
[1750412746547,0.78359,2551.9,2551.8,1.41082]
[1750412748741,0.78359,2551.9,2551.8,0.6272]
[1750412749143,0.78359,2551.9,2551.8,1.41082]
[1750412750440,0.78358,2552.0,2551.9,0.78354]
[1750412750639,0.78355,2552.1,2552.0,0.7835]
[1750412750841,24.57755,2552.1,2552.0,5.19799461]
[1750412751945,5.1117,2552.7,2552.3,0.78346]
[1750412752143,30.69037,2552.6,2552.5,3.07589461]
[1750412756252,30.69037,2552.6,2552.5,3.85929461]
[1750412756452,30.69037,2552.6,2552.5,3.07589461]
[1750412758955,0.78337,2552.6,2552.5,3.07589461]
[1750412759148,24.57437,2552.6,2552.5,3.07589461]
[1750412759350,0.7834,2552.5,2552.4,0.6772]
[1750412761249,0.7834,2552.5,2552.4,1.46063]
[1750412762150,0.7834,2552.5,2552.4,4.53652461]
[1750412763547,24.5734,2552.5,2552.4,4.53652461]
[1750412763748,24.5734,2552.5,2552.4,3.75309461]
[1750412763955,24.5734,2552.5,2552.4,0.6772]
[1750412765059,24.5734,2552.5,2552.4,1.46063]